fUST/lending_fUST_20250502
["ID","MTS","AMOUNT","RATE_DAILY","PERIOD"]
[359561824,1746125438675,-500.0,0.00018291,2]
[359561826,1746125438686,-500.0,0.00018291,2]
[359561828,1746125438695,-500.0,0.00018291,2]
[359561830,1746125438704,-500.0,0.00018291,2]
[359561832,1746125438714,-500.0,0.00018291,2]
[359561834,1746125438724,-500.0,0.00018291,2]
[359561835,1746125438734,-500.0,0.00018291,2]
[359561837,1746125438744,-500.0,0.00018291,2]
[359561840,1746125438754,-500.0,0.00018291,2]
[359561842,1746125438764,-500.0,0.00018291,2]
[359561844,1746125438773,-600.77761575,0.00018291,2]
[359561846,1746125438782,-500.0,0.00018291,2]
[359561848,1746125438791,-500.0,0.00018291,2]
[359561850,1746125438801,-500.0,0.00018291,2]
[359561852,1746125438810,-500.0,0.00018291,2]
[359561854,1746125438820,-500.0,0.00018291,2]
[359561856,1746125438829,-500.0,0.00018291,2]
[359561858,1746125438838,-500.0,0.00018291,2]
[359561860,1746125438848,-500.0,0.00018291,2]
[359561862,1746125438859,-248.57207549,0.00018291,2]
[359561864,1746125438868,-500.0,0.00018291,2]
[359561866,1746125438879,-500.0,0.00018291,2]
[359561868,1746125438888,-500.0,0.00018291,2]
[359561870,1746125438898,-477.55348689,0.00018291,2]
[359561872,1746125438907,-500.0,0.00018291,2]
[359561874,1746125438916,-500.0,0.00018291,2]
[359561876,1746125438927,-500.0,0.00018291,2]
[359561878,1746125438940,-181.01231877,0.00018291,2]
[359561880,1746125438950,-500.0,0.00018291,2]
[359561882,1746125438959,-500.0,0.00018291,2]
[359561884,1746125438969,-500.0,0.00018291,2]
[359561886,1746125438978,-500.0,0.00018291,2]
[359561888,1746125438987,-500.0,0.00018291,2]
[359561890,1746125438997,-500.0,0.00018291,2]
[359561892,1746125439006,-500.0,0.00018291,2]
[359561894,1746125439016,-500.0,0.00018291,2]
[359561896,1746125439026,-500.0,0.00018291,2]
[359561897,1746125439035,-500.0,0.00018291,2]
[359561898,1746125439045,-500.0,0.00018291,2]
[359561899,1746125439055,-500.0,0.00018291,2]
[359561900,1746125439065,-500.0,0.00018291,2]
[359561901,1746125439075,-500.0,0.00018291,2]
[359561902,1746125439085,-500.0,0.00018291,2]
[359561903,1746125439095,-500.0,0.00018291,2]
[359561904,1746125439104,-500.0,0.00018291,2]
[359561905,1746125439115,-500.0,0.00018291,2]
[359561906,1746125439125,-500.0,0.00018291,2]
[359561907,1746125439134,-500.0,0.00018291,2]
[359561908,1746125439143,-500.0,0.00018291,2]
[359561909,1746125439153,-500.0,0.00018291,2]
[359561910,1746125439162,-500.0,0.00018291,2]
[359561911,1746125439172,-500.0,0.00018291,2]
[359561912,1746125439181,-500.0,0.00018291,2]
[359561913,1746125439190,-500.0,0.00018291,2]
[359561914,1746125439200,-500.0,0.00018291,2]
[359561915,1746125439209,-500.0,0.00018291,2]
[359561917,1746125439221,-500.0,0.00018291,2]
[359561919,1746125439230,-500.0,0.00018291,2]
[359561921,1746125439241,-500.0,0.00018291,2]
[359561922,1746125439251,-500.0,0.00018291,2]
[359561923,1746125439260,-500.0,0.00018291,2]
[359561924,1746125439269,-500.0,0.00018291,2]
[359561925,1746125439278,-500.0,0.00018291,2]
[359561926,1746125439288,-500.0,0.00018291,2]
[359561927,1746125439298,-500.0,0.00018291,2]
[359561928,1746125439307,-500.0,0.00018291,2]
[359561929,1746125439317,-500.0,0.00018291,2]
[359561930,1746125439327,-500.0,0.00018291,2]
[359561931,1746125439337,-500.0,0.00018291,2]
[359561932,1746125439346,-500.0,0.00018291,2]
[359561933,1746125439355,-1870.52,0.00018291,3]
[359561934,1746125439365,-935.26,0.00018291,3]
[359561935,1746125439374,-467.63,0.00018291,3]
[359561936,1746125439384,-233.81,0.00018291,3]
[359561937,1746125439394,-701.48,0.00018291,3]
[359561938,1746125439403,-5723.61,0.00018292,3]
[359561939,1746125439413,-50000.0,0.00018292,2]
[359561940,1746125439422,-500.0,0.000183,2]
[359561941,1746125439432,-575.10325254,0.000183,2]
[359561942,1746125439442,-500.0,0.000183,2]
[359561943,1746125439451,-500.0,0.000183,2]
[359561944,1746125439460,-500.0,0.000183,2]
[359561945,1746125439470,-500.0,0.000183,2]
[359561946,1746125439479,-500.0,0.000183,2]
[359561947,1746125439489,-590.49196786,0.000183,2]
[359561948,1746125439498,-500.0,0.000183,2]
[359561949,1746125439507,-500.0,0.000183,2]
[359561950,1746125439517,-331.35899205,0.000183,2]
[359561951,1746125439527,-500.0,0.000183,2]
[359561952,1746125439536,-3741.03,0.00018305,3]
[359561953,1746125439546,-152.0,0.00018312,2]
[359561954,1746125439557,-500.0,0.00018313,2]
[359561955,1746125439570,-21637.53696252,0.00018315,2]
[359561956,1746125439580,-501.98415373,0.00018373,2]
[359561957,1746125439590,-500.0,0.00018373,2]
[359561958,1746125439599,-501.89805431,0.00018373,2]
[359561959,1746125439609,-282.43977094,0.00018373,2]
[359561960,1746125439655,-217.56022906,0.00018373,2]
[359561961,1746125439665,-500.0,0.00018373,2]
[359561962,1746125439674,-613.77481421,0.00018373,2]
[359561963,1746125439684,-500.0,0.00018373,2]
[359561964,1746125439695,-500.0,0.00018373,2]
[359561965,1746125439705,-500.0,0.00018373,2]
[359561966,1746125439715,-500.0,0.00018373,2]
[359561967,1746125439726,-500.44752969,0.00018373,2]
[359561968,1746125439735,-500.0,0.00018373,2]
[359561969,1746125439745,-500.0,0.00018373,2]
[359561970,1746125439754,-500.0,0.00018373,2]
[359561971,1746125439764,-500.0,0.00018373,2]
[359561972,1746125439773,-500.0,0.00018373,2]
[359561973,1746125439783,-500.0,0.00018373,2]
[359561974,1746125439793,-500.0,0.00018373,2]
[359561975,1746125439802,-500.0,0.00018373,2]
[359561976,1746125439811,-408.66284962,0.00018373,2]
[359561977,1746125439821,-500.0,0.00018373,2]
[359561978,1746125439830,-500.0,0.00018373,2]
[359561979,1746125439839,-500.0,0.00018373,2]
[359561980,1746125439849,-500.0,0.00018373,2]
[359561981,1746125439858,-500.0,0.00018373,2]
[359561982,1746125439867,-500.0,0.00018373,2]
[359561983,1746125439878,-500.0,0.00018373,2]
[359561984,1746125439888,-500.0,0.00018373,2]
[359561985,1746125439897,-57.57457742,0.00018373,2]
[359561986,1746125439909,-442.42542258,0.00018373,2]
[359561987,1746125439918,-500.0,0.00018373,2]
[359561988,1746125439928,-500.0,0.00018373,2]
[359561989,1746125439937,-375.49303812,0.00018373,2]
[359561990,1746125439947,-500.0,0.00018373,2]
[359561991,1746125439956,-500.0,0.00018373,2]
[359561992,1746125439965,-500.0,0.00018373,2]
[359561993,1746125439975,-500.42441715,0.00018373,2]
[359561994,1746125439986,-500.0,0.00018373,2]
[359561995,1746125439995,-500.0,0.00018373,2]
[359561996,1746125440006,-151.0,0.00018585,2]
[359561997,1746125440015,-500.0,0.00018587,2]
[359561998,1746125440024,-194.0,0.00018724,2]
[359561999,1746125440033,-500.0,0.00018861,2]
[359562000,1746125440043,-740.55580054,0.000189,2]
[359562001,1746125440053,-500.0,0.00019135,2]
[359562002,1746125440063,-247.0,0.00019146,2]
[359562003,1746125440073,-300.0,0.00019178,2]
[359562004,1746125440082,-4999.19032876,0.00019227,2]
[359562005,1746125440092,-169.8954447,0.00019273,2]
[359562006,1746125440101,-151.0,0.000193,2]
[359562007,1746125440111,-151.0,0.000193,2]
[359562008,1746125440121,-160.0,0.00019316,2]
[359562009,1746125440131,-100000.0,0.00019329,2]
[359562010,1746125440140,-500.0,0.00019373,2]
[359562011,1746125440150,-500.0,0.00019408,2]
[359562013,1746125440160,-2243.99582266,0.00019418,2]
[359562015,1746125440170,-316.0,0.00019576,2]
[359562017,1746125440179,-3741.04,0.00019661,3]
[359562018,1746125440189,-1870.52,0.00019661,3]
[359562020,1746125440198,-935.26,0.00019661,3]
[359562021,1746125440208,-467.62,0.00019661,3]
[359562022,1746125440219,-11447.22,0.00019662,3]
[359562023,1746125440229,-7482.06,0.00019675,3]
[359562025,1746125440239,-320.0,0.00019682,2]
[359562027,1746125440248,-6131.38613004,0.00019852,2]
[359562029,1746125440258,-380.0,0.00019878,2]
[359562031,1746125440267,-420.0,0.00019878,2]
[359562034,1746125440277,-420.0,0.00019878,2]
[359562036,1746125440287,-151.0,0.00019904,2]
[359562038,1746125440297,-151.0,0.00019954,2]
[359562040,1746125440307,-163.68406202,0.00019959,2]
[359562042,1746125440316,-1680.0,0.00019974,2]
[359562044,1746125440326,-160.0,0.0002,3]
[359562046,1746125440335,-267.0,0.00020017,2]
[359562048,1746125440345,-151.0,0.000202,4]
[359562050,1746125440355,-151.0,0.000202,4]
[359562052,1746125440365,-151.0,0.000203,3]
[359562054,1746125440374,-841.10298755,0.00020685,3]
[359562056,1746125440384,-182.07995741,0.00020685,3]
[359562058,1746125440393,-160.0,0.00020685,3]
[359562060,1746125440402,-12595.7684382,0.00020685,3]
[359562062,1746125440412,-160.0,0.00020685,3]
[359562064,1746125440422,-160.0,0.00020685,3]
[359562066,1746125440431,-600.0,0.00020822,2]
[359562068,1746125440441,-151.0,0.000209,3]
[359562070,1746125440451,-3112.8,0.00021,2]
[359562072,1746125440460,-3112.8,0.00021,2]
[359562074,1746125440470,-157.56,0.00021,2]
[359562076,1746125440480,-1356.57884546,0.00021015,2]
[359562078,1746125440490,-151.0,0.000211,4]
[359562080,1746125440500,-3112.7,0.000211,4]
[359562082,1746125440510,-3112.7,0.000211,4]
[359562084,1746125440520,-151.0,0.000211,3]
[359562086,1746125440529,-151.0,0.00021323,2]
[359562088,1746125440539,-6131.38613004,0.00021501,2]
[359562090,1746125440548,-151.0,0.000216,4]
[359562092,1746125440557,-587.0,0.00021684,2]
[359562094,1746125440567,-587.0,0.00021685,2]
[359562096,1746125440577,-2351.0,0.00021896,2]
[359562098,1746125440586,-151.0,0.000219,4]
[359562100,1746125440596,-160.0,0.00021917,2]
[359562102,1746125440605,-500.0,0.00021918,2]
[359562104,1746125440615,-500.0,0.00021918,2]
[359562106,1746125440624,-334.87981182,0.00021918,2]
[359562108,1746125440634,-151.0,0.00022,4]
[359562110,1746125440648,-151.0,0.000223,5]
[359562112,1746125440657,-900.0,0.00022466,2]
[359562114,1746125440666,-151.0,0.00022692,2]
[359562116,1746125440675,-494.15484802,0.00022734,2]
[359562118,1746125440686,-151.0,0.000228,7]
[359562120,1746125440695,-151.0,0.000228,8]
[359562122,1746125440704,-151.0,0.000229,9]
[359562124,1746125440714,-286.59433024,0.00022901,5]
[359562126,1746125440724,-160.0,0.00023,3]
[359562128,1746125440734,-421.4777418,0.00023,3]
[359562130,1746125440743,-160.0,0.00023,3]
[359562132,1746125440752,-160.0,0.00023,3]
[359562134,1746125440763,-160.0,0.00023,3]
[359562136,1746125440772,-160.0,0.00023,3]
[359562138,1746125440782,-6131.38613004,0.00023151,2]
[359562140,1746125440791,-151.0,0.000236,6]
[359562142,1746125440801,-2519.114059,0.00023613,2]
[359562144,1746125440810,-640.0,0.00023654,2]
[359562146,1746125440819,-823.0,0.00023655,2]
[359562148,1746125440829,-89077.566416,0.00023678,2]
[359562150,1746125440839,-233.716215,0.00023678,2]
[359562152,1746125440850,-151.0,0.000237,7]
[359562154,1746125440859,-151.0,0.000237,9]
[359562156,1746125440869,-1356.57884546,0.00023829,2]
[359562158,1746125440879,-1000.0,0.00023852,2]
[359562160,1746125440889,-731.90821332,0.00023852,2]
[359562163,1746125440899,-1000.0,0.00023852,2]
[359562165,1746125440908,-1000.0,0.00023852,2]
[359562167,1746125440917,-1000.0,0.00023852,2]
[359562169,1746125440927,-500.0,0.00023852,2]
[359562171,1746125440936,-1000.0,0.00023852,2]
[359562173,1746125440945,-1000.0,0.00023852,2]
[359562175,1746125440954,-1000.0,0.00023852,2]
[359562177,1746125440963,-1000.0,0.00023852,2]
[359562179,1746125440973,-500.0,0.00023852,2]
[359562181,1746125440983,-1000.0,0.00023852,2]
[359562183,1746125440993,-191.682165,0.00023852,2]
[359562185,1746125441003,-1000.0,0.00023852,2]
[359562187,1746125441013,-500.0,0.00023852,2]
[359562189,1746125441023,-500.0,0.00023852,2]
[359562191,1746125441032,-500.0,0.00023852,2]
[359562193,1746125441042,-1000.0,0.00023852,2]
[359562195,1746125441051,-290.60865643,0.00023852,2]
[359562197,1746125441060,-500.0,0.00023852,2]
[359562199,1746125441072,-1000.0,0.00023852,2]
[359562201,1746125441081,-1000.0,0.00023852,2]
[359562203,1746125441090,-1000.0,0.00023852,2]
[359562205,1746125441099,-466.4577424,0.0002387,2]
[359562207,1746125441108,-740.55580054,0.000239,2]
[359562209,1746125441118,-2500.0,0.00024,2]
[359562211,1746125441128,-2160.0,0.00024002,2]
[359562213,1746125441137,-250.0,0.00024051,2]
[359562215,1746125441147,-151.0,0.00024061,2]
[359562217,1746125441156,-1397.15181376,0.000241,10]
[359562219,1746125441165,-1397.15181366,0.000241,10]
[359562221,1746125441174,-1397.15181366,0.000241,10]
[359562223,1746125441183,-1397.15181366,0.000241,10]
[359562224,1746125441193,-1397.15181366,0.000241,10]
[359562226,1746125441204,-1397.15181366,0.000241,10]
[359562228,1746125441215,-1397.15181366,0.000241,10]
[359562230,1746125441225,-1200.0,0.0002411,2]
[359562232,1746125441234,-151.0,0.000242,7]
[359562234,1746125441244,-421.4777418,0.0002421,10]
[359562236,1746125441254,-160.0,0.0002421,10]
[359562238,1746125441263,-1397.15181366,0.0002421,10]
[359562240,1746125441272,-160.0,0.0002421,10]
[359562242,1746125441282,-160.0,0.00024355,2]
[359562244,1746125441292,-151.0,0.000246,8]
[359562246,1746125441301,-151.0,0.000246,5]
[359562248,1746125441311,-979.6205695,0.00024658,3]
[359562250,1746125441320,-380.0,0.00024658,2]
[359562252,1746125441330,-2000.0,0.00024714,4]
[359562254,1746125441340,-6131.38613004,0.000248,2]
[359562256,1746125441350,-914.1333063,0.00024852,2]
[359562258,1746125441359,-500.0,0.00024873,2]
[359562260,1746125441368,-500.35887222,0.00024873,2]
[359562262,1746125441377,-500.0,0.00024873,2]
[359562264,1746125441386,-500.0,0.00024873,2]
[359562266,1746125441395,-500.0,0.00024873,2]
[359562268,1746125441404,-500.0,0.00024873,2]
[359562270,1746125441413,-500.0,0.00024873,2]
[359562272,1746125441423,-500.0,0.00024873,2]
[359562274,1746125441432,-500.0,0.00024873,2]
[359562276,1746125441442,-500.0,0.00024873,2]
[359562278,1746125441451,-500.82118358,0.00024873,2]
[359562280,1746125441460,-629.0162293,0.00024873,2]
[359562282,1746125441469,-500.0,0.00024873,2]
[359562284,1746125441478,-500.0,0.00024873,2]
[359562286,1746125441488,-500.0,0.00024873,2]
[359562288,1746125441497,-257.36977579,0.00024873,2]
[359562290,1746125441507,-629.34070282,0.00024873,2]
[359562292,1746125441516,-504.36536091,0.00024873,2]
[359562294,1746125441525,-500.0,0.00024873,2]
[359562296,1746125441535,-500.0,0.00024873,2]
[359562298,1746125441544,-500.0,0.00024873,2]
[359562300,1746125441553,-437.32299945,0.00024873,2]
[359562302,1746125441563,-151.82832976,0.00024873,2]
[359562303,1746125441572,-500.29952747,0.00024873,2]
[359562305,1746125441581,-500.0,0.00024873,2]
[359562307,1746125441590,-500.0,0.00024873,2]
[359562310,1746125441600,-500.0,0.00024873,2]
[359562311,1746125441609,-500.0,0.00024873,2]
[359562314,1746125441618,-500.0,0.00024873,2]
[359562315,1746125441628,-500.0,0.00024873,2]
[359562317,1746125441639,-300.0,0.00024873,2]
[359562319,1746125441650,-500.0,0.00024873,2]
[359562321,1746125441660,-522.08528673,0.00024873,2]
[359562323,1746125441670,-500.0,0.00024873,2]
[359562325,1746125441679,-502.79927213,0.00024873,2]
[359562327,1746125441690,-501.10142307,0.00024873,2]
[359562330,1746125441700,-520.82326005,0.00024873,2]
[359562331,1746125441709,-500.23084466,0.00024873,2]
[359562333,1746125441720,-270.46070821,0.00024873,2]
[359562335,1746125441730,-500.0,0.00024873,2]
[359562337,1746125441739,-500.0,0.00024873,2]
[359562339,1746125441749,-500.0,0.00024873,2]
[359562341,1746125441758,-500.0,0.00024873,2]
[359562343,1746125441768,-501.14258668,0.00024873,2]
[359562346,1746125441778,-500.0,0.00024873,2]
[359562348,1746125441787,-500.0,0.00024873,2]
[359562350,1746125441796,-611.68997418,0.00024873,2]
[359562351,1746125441806,-500.0,0.00024873,2]
[359562354,1746125441816,-500.0,0.00024873,2]
[359562375,1746125442021,-500.0,0.00024873,2]
[359562377,1746125442032,-501.18180168,0.00024873,2]
[359562379,1746125442042,-500.0,0.00024873,2]
[359562381,1746125442054,-500.0,0.00024873,2]
[359562383,1746125442065,-500.0,0.00024873,2]
[359562385,1746125442075,-500.0,0.00024873,2]
[359562387,1746125442085,-500.0,0.00024873,2]
[359562389,1746125442094,-500.0,0.00024873,2]
[359562391,1746125442104,-500.0,0.00024873,2]
[359562393,1746125442113,-500.0,0.00024873,2]
[359562395,1746125442123,-554.54832201,0.00024873,2]
[359562397,1746125442133,-500.0,0.00024873,2]
[359562399,1746125442142,-524.55896372,0.00024873,2]
[359562401,1746125442152,-500.7900727,0.00024899,2]
[359562403,1746125442162,-160.0,0.00024899,2]
[359562405,1746125442172,-164.858528,0.000249,7]
[359562407,1746125442181,-164.858528,0.000249,7]
[359562409,1746125442191,-151.0,0.000249,7]
[359562411,1746125442200,-220.806371,0.000249,7]
[359562413,1746125442210,-151.0,0.000249,7]
[359562415,1746125442221,-185.663178,0.000249,7]
[359562417,1746125442232,-173.643399,0.000249,7]
[359562419,1746125442242,-173.643399,0.000249,7]
[359562421,1746125442252,-151.0,0.000249,7]
[359562423,1746125442262,-151.0,0.000249,7]
[359562425,1746125442271,-369.948995,0.000249,7]
[359562427,1746125442281,-151.0,0.000249,7]
[359562429,1746125442290,-369.948995,0.000249,7]
[359562431,1746125442300,-151.0,0.000249,7]
[359562433,1746125442310,-151.0,0.000249,7]
[359562435,1746125442319,-151.0,0.000249,7]
[359562437,1746125442329,-113895.08295176,0.000249,2]
[359562439,1746125442343,-634.762,0.000249,2]
[359562476,1746125442706,-6538.28638983,0.000249,2]
[359562508,1746125443008,-840.88007495,0.000249,2]
[359562554,1746125443447,-96466.89362869,0.000249,2]
[359565515,1746125622033,24900.0,0.0001729,2]
[359565516,1746125811324,7482.6055027,0.0001728,2]
[359565517,1746125914826,89077.566416,0.00017274,2]
[359565519,1746126099735,-1200.0,0.0001817,2]
[359565520,1746126099758,-300.0,0.0001817,2]
[359565521,1746126099780,-300.0,0.0001817,2]
[359565522,1746126099802,-5663.55721398,0.00018171,2]
[359565523,1746126099823,-500.0,0.00018171,2]
[359565524,1746126099848,-500.0,0.00018171,2]
[359565525,1746126099872,-500.0,0.00018171,2]
[359565526,1746126099896,-300.0,0.0001826,2]
[359565527,1746126099917,-300.0,0.0001826,2]
[359565528,1746126099940,-462.62490951,0.0001826,2]
[359565529,1746126099963,-500.0,0.0001826,2]
[359565530,1746126099985,-500.0,0.0001826,2]
[359565531,1746126100014,-3459.79354329,0.0001826,2]
[359565532,1746126100036,-233.41973508,0.0001826,2]
[359565533,1746126100058,-500.0,0.0001826,2]
[359565534,1746126100085,-3459.79354329,0.0001826,2]
[359565535,1746126100108,-500.0,0.0001826,2]
[359565536,1746126100130,-351.58300994,0.0001826,2]
[359565537,1746126100153,-500.0,0.0001826,2]
[359565538,1746126100183,-3459.79354329,0.0001826,2]
[359565539,1746126100207,-500.0,0.0001826,2]
[359565540,1746126100228,-377.53676333,0.0001826,2]
[359565541,1746126100255,-3459.79354329,0.0001826,2]
[359565542,1746126100282,-3459.79354329,0.0001826,2]
[359565543,1746126100304,-500.0,0.0001826,2]
[359565544,1746126100331,-3459.79354329,0.0001826,2]
[359565545,1746126100354,-500.0,0.0001826,2]
[359565546,1746126100379,-3459.79354329,0.0001826,2]
[359565547,1746126100402,-262.61572399,0.0001826,2]
[359565548,1746126100437,-3459.79354329,0.0001826,2]
[359565549,1746126100465,-3459.79354329,0.0001826,2]
[359565550,1746126100492,-3459.79354329,0.0001826,2]
[359565551,1746126100518,-3459.79354329,0.0001826,2]
[359565552,1746126100546,-3459.79354329,0.0001826,2]
[359565553,1746126100572,-3459.79354329,0.0001826,2]
[359565554,1746126100597,-3459.79354329,0.0001826,2]
[359565555,1746126100624,-3459.79354329,0.0001826,2]
[359565556,1746126100651,-3459.79354329,0.0001826,2]
[359565557,1746126100679,-3459.79354329,0.0001826,2]
[359565558,1746126100705,-3459.79354329,0.0001826,2]
[359565559,1746126100732,-3459.79354329,0.0001826,2]
[359565560,1746126100758,-3459.79354329,0.0001826,2]
[359565561,1746126100785,-3459.79354329,0.0001826,2]
[359565562,1746126100811,-3459.79354329,0.0001826,2]
[359565563,1746126100837,-3459.79354329,0.0001826,2]
[359565564,1746126100869,-3459.79354329,0.0001826,2]
[359565565,1746126100896,-3459.79354329,0.0001826,2]
[359565566,1746126100922,-3459.79354329,0.0001826,2]
[359565567,1746126100949,-3459.79354329,0.0001826,2]
[359565568,1746126100976,-3459.79354329,0.0001826,2]
[359565569,1746126101004,-3459.79354329,0.0001826,2]
[359565570,1746126101030,-3459.79354329,0.0001826,2]
[359565571,1746126101055,-3459.79354329,0.0001826,2]
[359565572,1746126101087,-3459.79354329,0.0001826,2]
[359565573,1746126101117,-3459.79354329,0.0001826,2]
[359565574,1746126101143,-3459.79354329,0.0001826,2]
[359565575,1746126101170,-3459.79354329,0.0001826,2]
[359565576,1746126101197,-3459.79354329,0.0001826,2]
[359565577,1746126101224,-3459.79354329,0.0001826,2]
[359565578,1746126101252,-3459.79354329,0.0001826,2]
[359565579,1746126101281,-3459.79354329,0.0001826,2]
[359565580,1746126101310,-3459.79354329,0.0001826,2]
[359565581,1746126101338,-3459.79354329,0.0001826,2]
[359565582,1746126101369,-3459.79354329,0.0001826,2]
[359565583,1746126101396,-3459.79354329,0.0001826,2]
[359565584,1746126101424,-3459.79354329,0.0001826,2]
[359565585,1746126101453,-3459.79354329,0.0001826,2]
[359565586,1746126101479,-3459.79354329,0.0001826,2]
[359565587,1746126101504,-3459.79354329,0.0001826,2]
[359565588,1746126101533,-3459.79354329,0.0001826,2]
[359565589,1746126101558,-3459.79354329,0.0001826,2]
[359565590,1746126101582,-3459.79354329,0.0001826,2]
[359565591,1746126101608,-3459.79354329,0.0001826,2]
[359565592,1746126101633,-3459.79354329,0.0001826,2]
[359565593,1746126101660,-4964.9163457,0.0001826,2]
[359565594,1746126101686,-4964.9163457,0.0001826,2]
[359565595,1746126101713,-4964.9163457,0.0001826,2]
[359565596,1746126101740,-4964.9163457,0.0001826,2]
[359565597,1746126101766,-4964.9163457,0.0001826,2]
[359565598,1746126101793,-4964.9163457,0.0001826,2]
[359565599,1746126101820,-4964.9163457,0.0001826,2]
[359565600,1746126101846,-4964.9163457,0.0001826,2]
[359565601,1746126101877,-4964.9163457,0.0001826,2]
[359565602,1746126101904,-4964.9163457,0.0001826,2]
[359565603,1746126101931,-4964.9163457,0.0001826,2]
[359565604,1746126101957,-4964.9163457,0.0001826,2]
[359565605,1746126101984,-4964.9163457,0.0001826,2]
[359565606,1746126102013,-4964.9163457,0.0001826,2]
[359565607,1746126102041,-4964.9163457,0.0001826,2]
[359565608,1746126102068,-4964.9163457,0.0001826,2]
[359565609,1746126102096,-4964.9163457,0.0001826,2]
[359565610,1746126102124,-4964.9163457,0.0001826,2]
[359565611,1746126102151,-4964.9163457,0.0001826,2]
[359565612,1746126102190,-4964.9163457,0.0001826,2]
[359565613,1746126102221,-4964.9163457,0.0001826,2]
[359565614,1746126102250,-576.15513339,0.0001826,2]
[359565619,1746126281539,423.700322,0.00017867,2]
[359565620,1746126371556,250.0,0.000246,30]
[359565621,1746126470667,250.0,0.00017263,2]
[359565622,1746126531023,210.24684974,0.00018058,2]
[359565677,1746126632827,-4861.41723748,0.00018156,2]
[359565679,1746126632838,-300.0,0.00018245,2]
[359565682,1746126632848,-1200.0,0.00018245,2]
[359565683,1746126632858,-300.0,0.00018245,2]
[359565685,1746126632868,-4665.8,0.00018246,3]
[359565687,1746126632879,-2332.9,0.00018246,3]
[359565689,1746126632891,-1166.45,0.00018246,3]
[359565692,1746126632903,-583.22,0.00018246,3]
[359565694,1746126632913,-291.61,0.00018246,3]
[359565696,1746126632923,-874.87,0.00018246,3]
[359565698,1746126632932,-500.0,0.00018255,2]
[359565699,1746126632944,-186.10873545,0.00018255,2]
[359565701,1746126632954,-500.0,0.00018255,2]
[359565703,1746126632964,-477.0127287,0.00018255,2]
[359565705,1746126632974,-500.0,0.00018255,2]
[359565706,1746126632984,-500.0,0.00018255,2]
[359565708,1746126632996,-500.0,0.00018255,2]
[359565710,1746126633007,-476.68095027,0.00018255,2]
[359565712,1746126633018,-500.0,0.00018255,2]
[359565714,1746126633027,-481.95129444,0.00018255,2]
[359565716,1746126633038,-12344.4186561,0.00018257,2]
[359565718,1746126633051,-37655.5813439,0.00018257,2]
[359565720,1746126633062,-500.0,0.0001826,2]
[359565723,1746126633074,-509.96264343,0.00018273,2]
[359565725,1746126633084,-500.0,0.00018273,2]
[359565727,1746126633094,-169.8954447,0.00018273,2]
[359565729,1746126633104,-500.0,0.00018273,2]
[359565731,1746126633114,-500.0,0.00018273,2]
[359565733,1746126633124,-500.0,0.00018273,2]
[359565735,1746126633134,-500.0,0.00018273,2]
[359565737,1746126633144,-500.0,0.00018273,2]
[359565739,1746126633155,-290.60865643,0.00018273,2]
[359565741,1746126633164,-500.0,0.00018273,2]
[359565743,1746126633174,-500.0,0.00018273,2]
[359565745,1746126633185,-426.51870749,0.00018273,2]
[359565747,1746126633195,-446.0461922,0.00018273,2]
[359565750,1746126633211,-53.9538078,0.00018273,2]
[359565752,1746126633222,-500.0,0.00018273,2]
[359565754,1746126633232,-586.8780695,0.00018273,2]